{"text_format":"1","workbook":"xlsx","n_sheets":2,"sheets":["form","Sheet1"],"not_rendered":{"charts":0,"images":0,"macros":1,"external_links":0,"defined_names":0,"comments":0,"pivot_tables":0},"unopened":[],"bounds":{"document_bytes":16777216,"sheet_cells":100000,"rows_first":2000,"rows_last":500,"rows_between":2000,"halvings":0,"cell_chars":16384,"cell_head_chars":4096},"cells_cut":0,"cells_raw":0,"read":"whole","date_system":"1900"}

{"sheet":"form","index":0,"n_rows":208,"n_cols":82,"rows_kept":208,"cut":false,"hidden":false,"merged":[[12,7,12,16],[12,31,12,40],[18,31,18,40],[17,4,17,6],[12,26,12,30],[32,1,47,21],[32,22,47,41],[191,8,191,17],[193,2,193,40],[192,2,192,40],[60,20,60,28],[60,29,60,37],[61,8,61,10],[61,11,61,13],[61,14,61,19],[61,20,61,28],[61,29,61,37],[62,8,62,10],[58,8,58,10],[58,11,58,13],[58,14,58,19],[58,20,58,28],[58,29,58,37],[59,8,59,10],[194,2,194,40],[63,8,63,10],[63,11,63,13],[63,14,63,19],[63,20,63,28],[63,29,63,37],[64,8,64,10],[64,11,64,13],[64,14,64,19],[64,20,64,28],[64,29,64,37],[155,32,155,40],[155,3,155,21],[155,22,155,24],[155,25,155,31],[160,32,160,40],[160,3,160,21],[160,22,160,24],[160,25,160,31],[159,32,159,40],[159,3,159,21],[159,22,159,24],[159,25,159,31],[158,32,158,40],[62,11,62,13],[62,14,62,19],[62,20,62,28],[62,29,62,37],[60,14,60,19],[57,20,57,28],[57,29,57,37],[57,14,57,19],[54,11,54,13],[57,11,57,13],[60,11,60,13],[59,11,59,13],[59,14,59,19],[59,20,59,28],[59,29,59,37],[56,11,56,13],[56,14,56,19],[56,20,56,28],[56,29,56,37],[54,14,54,19],[178,2,178,40],[163,2,163,40],[157,32,157,40],[157,3,157,21],[157,22,157,24],[157,25,157,31],[170,3,170,19],[170,20,170,37],[170,38,170,40],[171,3,171,19],[171,20,171,37],[171,38,171,40],[169,3,169,19],[169,20,169,37],[169,38,169,40],[156,32,156,40],[156,3,156,21],[156,22,156,24],[156,25,156,31],[167,3,167,19],[167,20,167,37],[167,38,167,40],[168,3,168,19],[168,20,168,37],[168,38,168,40],[158,3,158,21],[158,22,158,24],[158,25,158,31],[154,32,154,40],[154,3,154,21],[154,22,154,24],[154,25,154,31],[153,32,153,40],[153,3,153,21],[153,22,153,24],[153,25,153,31],[152,32,152,40],[152,3,152,21],[152,22,152,24],[152,25,152,31],[135,3,135,14],[135,15,135,19],[135,24,135,35],[134,3,134,14],[134,15,134,19],[133,2,133,19],[133,23,133,40],[134,24,134,35],[138,3,138,14],[138,15,138,19],[138,24,138,35],[137,3,137,14],[137,15,137,19],[137,24,137,35],[136,3,136,14],[136,15,136,19],[136,24,136,35],[135,36,135,40],[134,36,134,40],[136,36,136,40],[128,3,128,17],[128,18,128,19],[128,20,128,21],[128,22,128,31],[127,3,127,17],[127,18,127,19],[127,20,127,21],[127,22,127,31],[130,3,130,17],[130,18,130,19],[130,20,130,21],[130,22,130,31],[129,3,129,17],[129,18,129,19],[129,20,129,21],[129,22,129,31],[124,3,124,17],[124,18,124,19],[124,20,124,21],[124,22,124,31],[123,3,123,17],[123,18,123,19],[123,20,123,21],[123,22,123,31],[126,3,126,17],[126,18,126,19],[126,20,126,21],[126,22,126,31],[125,3,125,17],[125,18,125,19],[125,20,125,21],[125,22,125,31],[121,3,121,17],[121,18,121,19],[121,20,121,21],[121,22,121,31],[107,3,107,21],[107,22,107,23],[107,24,107,25],[107,26,107,35],[109,3,109,21],[109,22,109,23],[114,3,114,21],[114,22,114,23],[114,24,114,25],[114,26,114,35],[119,2,119,40],[120,3,120,17],[120,18,120,19],[120,20,120,21],[120,22,120,31],[107,36,107,40],[108,36,108,40],[109,24,109,25],[109,26,109,35],[109,36,109,40],[99,3,99,8],[99,9,99,25],[99,26,99,28],[99,29,99,36],[106,22,106,23],[106,24,106,25],[102,26,102,28],[102,29,102,36],[106,3,106,21],[101,9,101,25],[100,3,100,8],[101,3,101,8],[102,3,102,8],[102,9,102,25],[106,26,106,35],[106,36,106,40],[102,37,102,40],[104,2,104,40],[105,36,105,40],[105,26,105,35],[11,1,11,41],[13,2,13,6],[13,31,13,40],[13,7,13,16],[14,7,14,16],[15,7,15,16],[13,25,13,30],[22,2,22,6],[14,2,14,6],[15,2,15,6],[16,2,16,6],[18,2,18,6],[17,31,17,40],[20,2,20,6],[18,7,18,16],[17,8,17,9],[17,11,17,12],[17,14,17,16],[14,25,14,30],[14,31,14,40],[15,31,15,40],[16,31,16,40],[16,7,16,16],[19,2,19,6],[1,17,1,25],[2,31,2,34],[2,35,2,40],[3,2,3,20],[10,9,10,11],[5,9,5,16],[6,9,6,16],[7,9,7,16],[8,9,8,16],[4,2,4,19],[10,12,10,30],[4,35,10,40],[63,38,63,40],[64,38,64,40],[55,29,55,37],[199,2,202,40],[179,3,179,40],[180,3,180,40],[181,3,181,40],[182,3,182,40],[183,3,183,40],[184,3,184,40],[185,3,185,40],[186,3,186,40],[187,3,187,40],[188,3,188,40],[189,3,189,40],[195,2,196,40],[92,26,92,28],[98,37,98,40],[99,37,99,40],[100,37,100,40],[101,37,101,40],[101,26,101,28],[97,37,97,40],[100,26,100,28],[54,38,54,40],[55,38,55,40],[56,38,56,40],[57,38,57,40],[58,38,58,40],[59,38,59,40],[60,38,60,40],[61,38,61,40],[62,38,62,40],[120,32,120,40],[87,37,87,40],[73,37,73,40],[74,37,74,40],[88,37,88,40],[93,37,93,40],[94,37,94,40],[90,29,90,36],[91,29,91,36],[74,29,74,32],[74,33,74,36],[76,37,76,40],[77,33,77,36],[96,37,96,40],[89,37,89,40],[90,37,90,40],[97,29,97,36],[114,36,114,40],[100,29,100,36],[101,29,101,36],[92,29,92,36],[98,29,98,36],[75,3,75,21],[75,22,75,28],[75,29,75,32],[75,33,75,36],[23,2,23,6],[20,7,20,16],[15,25,15,30],[16,25,16,30],[30,1,30,41],[53,2,53,40],[23,7,23,40],[22,31,22,40],[22,7,22,13],[22,27,22,30],[22,15,22,18],[22,19,22,25],[19,7,19,16],[19,24,19,30],[19,31,19,40],[55,14,55,19],[55,20,55,28],[56,8,56,10],[67,37,67,40],[61,3,61,7],[88,9,88,25],[88,26,88,28],[76,29,76,32],[88,29,88,36],[77,3,77,21],[77,22,77,28],[77,29,77,32],[69,37,69,40],[70,37,70,40],[69,3,69,21],[69,22,69,28],[69,29,69,32],[69,33,69,36],[70,3,70,21],[70,22,70,28],[70,29,70,32],[70,33,70,36],[75,37,75,40],[73,3,73,21],[73,22,73,28],[73,29,73,32],[73,33,73,36],[74,3,74,21],[74,22,74,28],[81,3,81,21],[81,22,81,28],[81,29,81,32],[81,33,81,36],[81,37,81,40],[82,3,82,21],[82,22,82,28],[82,29,82,32],[82,33,82,36],[82,37,82,40],[63,3,63,7],[64,3,64,7],[66,2,66,40],[65,1,65,40],[54,20,54,28],[54,29,54,37],[55,8,55,10],[55,11,55,13],[71,3,71,21],[71,22,71,28],[71,29,71,32],[71,33,71,36],[62,3,62,7],[54,3,54,7],[55,3,55,7],[56,3,56,7],[57,3,57,7],[58,3,58,7],[59,3,59,7],[60,3,60,7],[54,8,54,10],[57,8,57,10],[60,8,60,10],[68,37,68,40],[72,3,72,21],[72,22,72,28],[67,33,67,36],[67,29,67,32],[67,22,67,28],[67,3,67,21],[68,33,68,36],[68,29,68,32],[68,22,68,28],[68,3,68,21],[89,3,89,8],[90,9,90,25],[90,26,90,28],[91,9,91,25],[91,26,91,28],[92,9,92,25],[95,37,95,40],[93,9,93,25],[93,26,93,28],[93,29,93,36],[94,9,94,25],[94,26,94,28],[94,29,94,36],[87,3,87,8],[86,2,86,40],[91,37,91,40],[92,37,92,40],[87,29,87,36],[87,26,87,28],[87,9,87,25],[100,9,100,25],[71,37,71,40],[72,29,72,32],[72,33,72,36],[79,3,79,21],[79,22,79,28],[79,29,79,32],[79,33,79,36],[79,37,79,40],[80,3,80,21],[80,22,80,28],[80,29,80,32],[80,33,80,36],[80,37,80,40],[72,37,72,40],[77,37,77,40],[78,37,78,40],[78,3,78,21],[78,22,78,28],[78,29,78,32],[78,33,78,36],[76,3,76,21],[76,22,76,28],[76,33,76,36],[108,26,108,35],[95,9,95,25],[95,26,95,28],[95,29,95,36],[105,24,105,25],[105,3,105,21],[88,3,88,8],[89,9,89,25],[89,26,89,28],[89,29,89,36],[92,3,92,8],[91,3,91,8],[96,26,96,28],[96,29,96,36],[90,3,90,8],[97,3,97,8],[97,9,97,25],[96,3,96,8],[95,3,95,8],[94,3,94,8],[93,3,93,8],[96,9,96,25],[105,22,105,23],[111,36,111,40],[112,3,112,21],[112,22,112,23],[112,24,112,25],[112,26,112,35],[112,36,112,40],[110,3,110,21],[110,22,110,23],[110,24,110,25],[110,26,110,35],[110,36,110,40],[108,3,108,21],[108,22,108,23],[108,24,108,25],[97,26,97,28],[98,3,98,8],[98,9,98,25],[98,26,98,28],[113,3,113,21],[113,22,113,23],[113,24,113,25],[113,26,113,35],[113,36,113,40],[111,3,111,21],[111,22,111,23],[111,24,111,25],[111,26,111,35],[115,3,115,21],[115,22,115,23],[115,24,115,25],[115,26,115,35],[115,36,115,40],[141,36,141,40],[140,36,140,40],[139,36,139,40],[138,36,138,40],[137,36,137,40],[130,32,130,40],[129,32,129,40],[128,32,128,40],[127,32,127,40],[126,32,126,40],[125,32,125,40],[124,32,124,40],[123,32,123,40],[122,32,122,40],[122,3,122,17],[122,18,122,19],[122,20,122,21],[122,22,122,31],[121,32,121,40],[141,3,141,14],[141,15,141,19],[141,24,141,35],[140,3,140,14],[140,15,140,19],[140,24,140,35],[139,3,139,14],[139,15,139,19],[139,24,139,35],[143,24,143,35],[142,3,142,14],[142,15,142,19],[142,24,142,35],[151,32,151,40],[151,3,151,21],[151,22,151,24],[151,25,151,31],[149,2,149,40],[150,32,150,40],[150,3,150,21],[150,22,150,24],[150,25,150,31],[144,36,144,40],[143,36,143,40],[142,36,142,40],[144,3,144,14],[144,15,144,19],[144,24,144,35],[143,3,143,14],[143,15,143,19],[204,33,204,34],[204,36,204,37],[204,39,204,41],[204,1,204,31],[164,38,164,40],[164,20,164,37],[164,3,164,19],[165,3,165,19],[165,20,165,37],[165,38,165,40],[166,3,166,19],[166,20,166,37],[166,38,166,40],[172,3,172,19],[172,20,172,37],[172,38,172,40],[173,3,173,19],[173,20,173,37],[173,38,173,40],[174,3,174,19],[174,20,174,37],[174,38,174,40],[191,2,191,7],[198,2,198,30]]}
[]
[null,null,null,null,null,null,null,null,null,null,null,null,null,null,null,null,null,"فرم تقاضای همکاری",null,null,null,null,null,null,null,null,null,null,null,null,null,null,null,null,null,null,null,null,null,null,null,null,null,null,null,null,"روز","ماه","سال","ورودی","نام و نام خانوادگی","کد ملی","سال تولد","محل تولد","جنسیت","وضعیت تاهل","عضویت ب م ن","وضعیت تحصیلی","مقطع","رشته","گرایش","دانشگاه","شماره تلفن","آدرس","ایمیل","درخواست","آماده برای کمیسیون","وضعیت","سطح","امتیاز بندی","تاریخ کمیسیون","شماره جلسه","تعداد جلسات","شماره نیاز","مصوبات کمیسیون","وضعیت بکارگیری","توضیحات","تسلط نرم افزاری","زبان خارجی","کلمات کلیدی تحقیقات","توانمندی های خاص","عنوان پایان نامه"]
[null,null,null,null,null,null,null,null,null,null,null,null,null,null,null,null,null,null,null,null,null,null,null,null,null,null,null,null,null,null,null,"کد اختصاصی:",null,null,null,null,null,null,null,null,null,null,null,null,null,null,{"$f":"AH205","v":0},{"$f":"AK205","v":0},{"$f":"RIGHT(AN205,2)","v":""},{"$f":"I192","v":0},{"$f":"CONCATENATE(H13,\" \",H14)","v":" "},{"$f":"H17","v":0},{"$f":"AV22","v":"//"},{"$f":"H19","v":0},{"$f":"H21","v":0},{"$f":"H20","v":0},{"$f":"AF20","v":0},{"$f":"AF14","v":0},{"$f":"AF15","v":0},{"$f":"AF16","v":0},{"$f":"AF17","v":0},{"$f":"AF13","v":0},{"$f":"CONCATENATE(H23,\"  -  \",T23)","v":"  -  "},{"$f":"H24","v":0},{"$f":"AF23","v":0},{"$f":"AR8","v":"کسر از خدمت"},null,null,null,null,null,null,null,null,null,null,null,{"$f":"AS146","v":""},{"$f":"AU146","v":""},null,{"$f":"AS191","v":""}]
[null,null,"به: دفتر همکاری های علمی و امور نخبگان دفاعی شهید فهمیده - منطقه شمالشرق"]
[null,null,"با سلام، احتراما اینجانب متقاضی همکاری با بخش دفاع در قالب های زیر می باشم:",null,null,null,null,null,null,null,null,null,null,null,null,null,null,null,null,null,null,null,null,null,null,null,null,null,null,null,null,null,null,null,null,"محل قراردادن عکس\n(لطفا عکس خود را در این محل  Insert  نمایید)",null,null,null,null,null,null,null,null,"01","01","1300"]
[null,null,null,null,null,null,null,null,null,"کسر از خدمت",null,null,null,null,null,null,null,null,null,null,null,null,null,null,null,null,null,null,null,null,null,null,null,null,null,null,null,null,null,null,null,null,null,null,"02","02","1301","کاردانی"]
[null,null,null,null,null,null,null,null,null,"امریه",null,null,null,null,null,null,null,null,null,null,null,null,null,null,null,null,null,null,null,null,null,null,null,null,null,null,null,null,null,null,null,null,null,null,"03","03","1302","کارشناسی نا پیوسته"]
[null,null,null,null,null,null,null,null,null,"حمایت از پایان نامه / پژوهانه",null,null,null,null,null,null,null,null,null,null,null,null,null,null,null,null,null,null,null,null,null,null,null,null,null,null,null,null,null,null,null,null,null,{"$f":"IF(AR10=18,M11,INDEX(J6:J11,AR10-12))","v":"کسر از خدمت"},"04","04","1303","کارشناسی پیوسته"]
[null,null,null,null,null,null,null,null,null,"همکاری ساعتی/ پروژه ای",null,null,null,null,null,null,null,null,null,null,null,null,null,null,null,null,null,null,null,null,null,null,null,null,null,null,null,null,null,null,null,null,null,"کسر از خدمت","06","06","1305","کارشناسی ارشد"]
[null,null,null,null,null,null,null,null,null,"جذب و استخدام",null,null,null,null,null,null,null,null,null,null,null,null,null,null,null,null,null,null,null,null,null,null,null,null,null,null,null,null,null,null,null,null,null,13,"07","07","1306","دکتری"]
[null,null,null,null,null,null,null,null,null,"سایر موارد",null,null,null,null,null,null,null,null,null,null,null,null,null,null,null,null,null,null,null,null,null,null,null,null,null,null,null,null,null,null,null,null,null,null,"08","08","1307","دکتری حرفه ای"]
[null,"---- مشخصات متقاضی ------------------------------------------------------------------------------------------------------------------------",null,null,null,null,null,null,null,null,null,null,null,null,null,null,null,null,null,null,null,null,null,null,null,null,null,null,null,null,null,null,null,null,null,null,null,null,null,null,null,null,null,null,"09","09","1308"]
[null,null,null,null,null,null,"نام: ",null,null,null,null,null,null,null,null,null,null,null,null,null,null,null,null,null,null,null,"دانشگاه محل تحصیل:",null,null,null,null,null,null,null,null,null,null,null,null,null,null,null,null,null,"10","10","1309"]
[null,null,"نام خانوادگی:",null,null,null,null,null,null,null,null,null,null,null,null,null,null,null,null,null,null,null,null,null,null,"وضعیت تحصیلی:",null,null,null,null,null,null,null,null,null,null,null,null,null,null,null,null,null,null,"11","11","1310","دانشجو"]
[null,null,"نام پدر:",null,null,null,null,null,null,null,null,null,null,null,null,null,null,null,null,null,null,null,null,null,null," مقطع تحصیلی:",null,null,null,null,null,null,null,null,null,null,null,null,null,null,null,null,null,null,"12","12","1311","فارغ التحصیل"]
[null,null,"شماره شناسنامه:",null,null,null,null,null,null,null,null,null,null,null,null,null,null,null,null,null,null,null,null,null,null,"رشته:",null,null,null,null,null,null,null,null,null,null,null,null,null,null,null,null,null,null,"14",null,"1313","انصراف از تحصیل"]
[null,null,"کد ملی:",null,null,null,null,null,null,null,null,null,null,null,null,null,null,null,null,null,null,null,null,null,null,"گرایش:",null,null,null,null,null,null,null,null,null,null,null,null,null,null,null,null,null,null,"15",null,"1314"]
[null,null,null,null,"تاریخ تولد:",null,null,"روز",null,null,"ماه",null,null,"سال",null,null,null,null,null,null,null,null,null,null,null,null,null,null,null,null,"معدل:",null,null,null,null,null,null,null,null,null,null,null,null,null,"16",null,"1315"]
[null,null,"محل تولد:",null,null,null,null,null,null,null,null,null,null,null,null,null,null,null,null,null,null,null,null,null,null,null,null,null,null,null,null,null,null,null,null,null,null,null,null,null,null,null,null,null,"17",null,"1316"]
[null,null,"وضعیت تاهل:",null,null,null,null,null,null,null,null,null,null,null,null,null,null,null,null,null,null,null,null,null,"عضویت بنیاد ملی نخبگان:",null,null,null,null,null,null,null,null,null,null,null,null,null,null,null,null,null,null,null,"18",null,"1317"]
[null,null,"جنسیت:",null,null,null,null,null,null,null,null,null,null,null,null,null,null,null,null,null,null,null,null,null,null,null,null,null,null,null,null,null,null,null,null,null,null,null,null,null,null,null,null,null,"19",null,"1318",null,null,null,"مرد"]
[null,null,null,null,null,null,null,null,null,null,null,null,null,null,null,null,null,null,null,null,null,null,null,null,null,null,null,null,null,null,null,null,null,null,null,null,null,null,null,null,null,null,null,null,"20",null,"1319",{"$f":"CONCATENATE(O18,\"/\",L18,\"/\",I18)","v":"//"},null,null,"زن"]
[null,null,"شماره تماس همراه:",null,null,null,null,null,null,null,null,null,null,null,null,"شماه تماس ثابت:",null,null,null,null,null,null,null,null,null,null,null,"پست الکترونیکی:",null,null,null,null,null,null,null,null,null,null,null,null,null,null,null,null,"21",null,"1320"]
[null,null,"آدرس فعلی محل سکونت:",null,null,null,null,null,null,null,null,null,null,null,null,null,null,null,null,null,null,null,null,null,null,null,null,null,null,null,null,null,null,null,null,null,null,null,null,null,null,null,null,null,"22",null,"1321"]
[null,null,null,null,null,null,null,null,null,null,null,null,null,null,null,null,null,null,null,null,null,null,null,null,null,null,null,null,null,null,null,null,null,null,null,null,null,null,null,null,null,null,null,null,"23",null,"1322"]
[null,null,null,null,null,null,null,null,null,null,null,null,null,null,null,null,null,null,null,null,null,null,null,null,null,null,null,null,null,null,null,null,null,null,null,null,null,null,null,null,null,null,null,null,"24",null,"1323"]
[null,null,null,null,null,null,null,null,null,null,null,null,null,null,null,null,null,null,null,null,null,null,null,null,null,null,null,null,null,null,null,null,null,null,null,null,null,null,null,null,null,null,null,null,"25",null,"1324"]
[null,null,null,null,null,null,null,null,null,null,null,null,null,null,null,null,null,null,null,null,null,null,null,null,null,null,null,null,null,null,null,null,null,null,null,null,null,null,null,null,null,null,null,null,"26",null,"1325"]
[null,null,null,null,null,null,null,null,null,null,null,null,null,null,null,null,null,null,null,null,null,null,null,null,null,null,null,null,null,null,null,null,null,null,null,null,null,null,null,null,null,null,null,null,"27",null,"1326"]
[null,null,null,null,null,null,null,null,null,null,null,null,null,null,null,null,null,null,null,null,null,null,null,null,null,null,null,null,null,null,null,null,null,null,null,null,null,null,null,null,null,null,null,null,"28",null,"1327"]
[null,null,null,null,null,null,null,null,null,null,null,null,null,null,null,null,null,null,null,null,null,null,null,null,null,null,null,null,null,null,null,null,null,null,null,null,null,null,null,null,null,null,null,null,"29",null,"1328"]
[null,null,null,null,null,null,null,null,null,null,null,null,null,null,null,null,null,null,null,null,null,null,null,null,null,null,null,null,null,null,null,null,null,null,null,null,null,null,null,null,null,null,null,null,"30",null,"1329","استعداد برتر"]
[null,"قوانین و مقرارت\n1- تکمیل صحیح اطلاعات در فرم الزامی است.فرم مربوطه را به همراه رزومه ارسال نمایید.\n2- نیازی به ارائه مدارک در تائید و صحت اطلاعات وارد شده در حال حاضر نمی باشد.\n3- تمامی درخواست ها مطابق با دستورالعمل های جاری و پس از بررسی وضعیت متقاضیان قابل بررسی می باشد.\n4- دفتر در بررسی درخواست ها و اولویت بندی معرفی متقاضیان مختار خواهد بود.\n5- معرفی متقاضیان پس از تطبیق توانمندی با نیاز فعلی قابل انجام می باشد.\n6- در صورت معرفی افراد، این دفتر با متقاضی تماس تلفنی برقرار خواهد نمود.ارسال تقاضا به صنعت دفاعی و دعوت به مصاحبه توسط صنعت پس از بررسی درخواست خواهد بود و صنعت دفاعی نیز در انتخاب افراد مخیر و مختار است.\n7- دانشجویان نمی توانند درخواست امریه بدهند-دانشجویان و فارغ التحصیلان کارشناسی ارشد به بالا می توانند درخواست کسر خدمت سربازی بدهند. دانشجویان و فارغ التحصیلان مقطع کارشناسی فقط می توانند از مزایای تعریف پایان نامه و در صورت فارغ التحصیلی از امریه سربازی( با تایید نظر صنعت) استفاده نمایند.\nمراحل تشکیل پرونده کسر از خدمت سربازی\nهدف: انجام پروژه تحقیقاتی از مجموع نیازمندی های صنایع دفاعی و بهره مندی از کسر خدمت سربازی به میزان مصوب ستاد کل نیروهای مسلح\nفقط افرادی که دارای شرایط ذیل باشند می توانند از مزایای کسر خدمت سربازی استفاده نمایند:\n1- دانشجویان و فارغ التحصیلان مقاطع کارشناسی ارشد و دکتری \n2- سربازان دارای مدرک کارشناسی ارشد و دکتری که از خدمت دوره سربازی ایشان بیش از12 ماه باقیمانده است.\nتبصره1: در صورتیکه متقاضیان قصد دارند پروژه پیشنهادی آنها جهت تعریف پروژه کسر خدمت سربازی مد نظر قرار گیرد، می بایست چکیده ای چند صفحه ای از پروژه مذکور را به همراه سایر مستندات فوق و در هنگام تکمیل فرم ارائه نمایند.\n\n\n",null,null,null,null,null,null,null,null,null,null,null,null,null,null,null,null,null,null,null,null,"مراحل تشکیل پرونده امریه  سربازی\nکلیه فارغ التحصیلان مقاطع کارشناسی ،کارشناسی ارشد و دکتری که حداقل 5 ماه به تاریخ اعزام ایشان باقی مانده باشد. لازم به ذکر است صنعت دفاعی منطقه در انتخاب معرفی شدگان مختار بوده و با توجه به شرایط صنعت خود نسبت به پذیرش افراد اقدام می نماید.\nمراحل تشکیل پرونده جهت تعریف پایان نامه\nکلیه دانشجویان مقاطع کارشناسی ،کارشناسی ارشد و دکتری با رعایت ضوابط جاری دانشگاه می توانند نسبت به اخذ پایان نامه اقدام نمایند.\nقابل توجه متقاضیان:\nپس از موافقت صنعت دفاعی جهت تعریف عنوان پایان نامه ، ارائه معرفی نامه از دانشگاه به صنعت پذیرنده  الزامی می باشد . لذا با توجه به لزوم موافقت استاد مربوطه جهت تعریف پایان نامه ، متقاضی می بایست پس از موافقت صنعت مذکور ضمن مراجعه به دانشگاه خود ، معرفی نامه را دریافت و به صنعت مربوطه ارائه می نماید.\nشرایط معرفی متقاضیان:\n1- رزومه علمی و تجربی متناسب با رشته و گرایش آخرین مقطع تحصیلی\n2- معدل قابل قبول ( دانشگاه دولتی 16 و سایر دانشگاه ها 17)\n3- وجود نیازمندی مطابق با رشته و گرایش تحصیلی متقاضی در لیست نیازمندی فعلی صنایع دفاعی و یا وجود توانمندی خاص در متقاضی که مورد نیاز صنعت باشد.\n4- کسب امتیاز لازم \nچند نکته:\n• از انتخاب همزمان چند درخواست(کسر خدمت، امریه، همکاری، جذب و استخدام، تعریف پایان نامه و ...) جدا اجتناب و در انتخاب اولویت مد نظر قرار گیرد.\nنگارش کلمات کلیدی تحقیقات ، پایان نامه ، پروژه های تحقیقاتی انجام شده الزامی است.\n\n",null,null,null,null,null,null,null,null,null,null,null,null,null,null,null,null,null,null,null,null,null,"31",null,"1330","سطح 1"]
[null,null,null,null,null,null,null,null,null,null,null,null,null,null,null,null,null,null,null,null,null,null,null,null,null,null,null,null,null,null,null,null,null,null,null,null,null,null,null,null,null,null,null,null,null,null,"1331","سطح 2"]
[null,null,null,null,null,null,null,null,null,null,null,null,null,null,null,null,null,null,null,null,null,null,null,null,null,null,null,null,null,null,null,null,null,null,null,null,null,null,null,null,null,null,null,null,null,null,"1332","سطح 3"]
[null,null,null,null,null,null,null,null,null,null,null,null,null,null,null,null,null,null,null,null,null,null,null,null,null,null,null,null,null,null,null,null,null,null,null,null,null,null,null,null,null,null,null,null,null,null,"1333"]
[null,null,null,null,null,null,null,null,null,null,null,null,null,null,null,null,null,null,null,null,null,null,null,null,null,null,null,null,null,null,null,null,null,null,null,null,null,null,null,null,null,null,null,null,null,null,"1334"]
[null,null,null,null,null,null,null,null,null,null,null,null,null,null,null,null,null,null,null,null,null,null,null,null,null,null,null,null,null,null,null,null,null,null,null,null,null,null,null,null,null,null,null,null,null,null,"1335"]
[null,null,null,null,null,null,null,null,null,null,null,null,null,null,null,null,null,null,null,null,null,null,null,null,null,null,null,null,null,null,null,null,null,null,null,null,null,null,null,null,null,null,null,null,null,null,"1336"]
[null,null,null,null,null,null,null,null,null,null,null,null,null,null,null,null,null,null,null,null,null,null,null,null,null,null,null,null,null,null,null,null,null,null,null,null,null,null,null,null,null,null,null,null,null,null,"1337"]
[null,null,null,null,null,null,null,null,null,null,null,null,null,null,null,null,null,null,null,null,null,null,null,null,null,null,null,null,null,null,null,null,null,null,null,null,null,null,null,null,null,null,null,null,null,null,"1338"]
[null,null,null,null,null,null,null,null,null,null,null,null,null,null,null,null,null,null,null,null,null,null,null,null,null,null,null,null,null,null,null,null,null,null,null,null,null,null,null,null,null,null,null,null,null,null,"1339"]
[null,null,null,null,null,null,null,null,null,null,null,null,null,null,null,null,null,null,null,null,null,null,null,null,null,null,null,null,null,null,null,null,null,null,null,null,null,null,null,null,null,null,null,null,null,null,"1340"]
[null,null,null,null,null,null,null,null,null,null,null,null,null,null,null,null,null,null,null,null,null,null,null,null,null,null,null,null,null,null,null,null,null,null,null,null,null,null,null,null,null,null,null,null,null,null,"1341"]
[null,null,null,null,null,null,null,null,null,null,null,null,null,null,null,null,null,null,null,null,null,null,null,null,null,null,null,null,null,null,null,null,null,null,null,null,null,null,null,null,null,null,null,null,null,null,"1342"]
[null,null,null,null,null,null,null,null,null,null,null,null,null,null,null,null,null,null,null,null,null,null,null,null,null,null,null,null,null,null,null,null,null,null,null,null,null,null,null,null,null,null,null,null,null,null,"1343"]
[null,null,null,null,null,null,null,null,null,null,null,null,null,null,null,null,null,null,null,null,null,null,null,null,null,null,null,null,null,null,null,null,null,null,null,null,null,null,null,null,null,null,null,null,null,null,"1344"]
[null,null,null,null,null,null,null,null,null,null,null,null,null,null,null,null,null,null,null,null,null,null,null,null,null,null,null,null,null,null,null,null,null,null,null,null,null,null,null,null,null,null,null,null,null,null,"1345"]
[null,null,null,null,null,null,null,null,null,null,null,null,null,null,null,null,null,null,null,null,null,null,null,null,null,null,null,null,null,null,null,null,null,null,null,null,null,null,null,null,null,null,null,null,null,null,"1346"]
[null,null,null,null,null,null,null,null,null,null,null,null,null,null,null,null,null,null,null,null,null,null,null,null,null,null,null,null,null,null,null,null,null,null,null,null,null,null,null,null,null,null,null,null,null,null,"1347"]
[null,null,null,null,null,null,null,null,null,null,null,null,null,null,null,null,null,null,null,null,null,null,null,null,null,null,null,null,null,null,null,null,null,null,null,null,null,null,null,null,null,null,null,null,null,null,"1349"]
[null,null,null,null,null,null,null,null,null,null,null,null,null,null,null,null,null,null,null,null,null,null,null,null,null,null,null,null,null,null,null,null,null,null,null,null,null,null,null,null,null,null,null,null,null,null,"1350"]
[null,null,null,null,null,null,null,null,null,null,null,null,null,null,null,null,null,null,null,null,null,null,null,null,null,null,null,null,null,null,null,null,null,null,null,null,null,null,null,null,null,null,null,null,null,null,"1351"]
[null,null,"سوابق تحصیلی ",null,null,null,null,null,null,null,null,null,null,null,null,null,null,null,null,null,null,null,null,null,null,null,null,null,null,null,null,null,null,null,null,null,null,null,null,null,null,null,null,null,null,null,"1352"]
[null,null,null,"مقطع",null,null,null,null,"تاریخ شروع",null,null,"تاریخ پایان",null,null,"محل تحصیل",null,null,null,null,null,"رشته",null,null,null,null,null,null,null,null,"گرایش",null,null,null,null,null,null,null,null,"معدل",null,null,null,null,null,null,null,"1353"]
[null,null,1,null,null,null,null,null,null,null,null,null,null,null,null,null,null,null,null,null,null,null,null,null,null,null,null,null,null,null,null,null,null,null,null,null,null,null,null,null,null,null,null,null,null,null,"1354"]
[null,null,2,null,null,null,null,null,null,null,null,null,null,null,null,null,null,null,null,null,null,null,null,null,null,null,null,null,null,null,null,null,null,null,null,null,null,null,null,null,null,null,null,null,null,null,"1355"]
[null,null,3,null,null,null,null,null,null,null,null,null,null,null,null,null,null,null,null,null,null,null,null,null,null,null,null,null,null,null,null,null,null,null,null,null,null,null,null,null,null,null,null,null,null,null,"1356"]
[null,null,4,null,null,null,null,null,null,null,null,null,null,null,null,null,null,null,null,null,null,null,null,null,null,null,null,null,null,null,null,null,null,null,null,null,null,null,null,null,null,null,null,null,null,null,"1357"]
[null,null,5,null,null,null,null,null,null,null,null,null,null,null,null,null,null,null,null,null,null,null,null,null,null,null,null,null,null,null,null,null,null,null,null,null,null,null,null,null,null,null,null,null,null,null,"1358"]
[null,null,6,null,null,null,null,null,null,null,null,null,null,null,null,null,null,null,null,null,null,null,null,null,null,null,null,null,null,null,null,null,null,null,null,null,null,null,null,null,null,null,null,null,null,null,"1359"]
[null,null,7,null,null,null,null,null,null,null,null,null,null,null,null,null,null,null,null,null,null,null,null,null,null,null,null,null,null,null,null,null,null,null,null,null,null,null,null,null,null,null,null,null,null,null,"1360"]
[null,null,8,null,null,null,null,null,null,null,null,null,null,null,null,null,null,null,null,null,null,null,null,null,null,null,null,null,null,null,null,null,null,null,null,null,null,null,null,null,null,null,null,null,null,null,"1361"]
[null,null,9,null,null,null,null,null,null,null,null,null,null,null,null,null,null,null,null,null,null,null,null,null,null,null,null,null,null,null,null,null,null,null,null,null,null,null,null,null,null,null,null,null,null,null,"1362"]
[null,null,10,null,null,null,null,null,null,null,null,null,null,null,null,null,null,null,null,null,null,null,null,null,null,null,null,null,null,null,null,null,null,null,null,null,null,null,null,null,null,null,null,null,null,null,"1363"]
[null,null,null,null,null,null,null,null,null,null,null,null,null,null,null,null,null,null,null,null,null,null,null,null,null,null,null,null,null,null,null,null,null,null,null,null,null,null,null,null,null,null,null,null,null,null,"1364"]
[null,null,"سوابق دوره های آموزشی",null,null,null,null,null,null,null,null,null,null,null,null,null,null,null,null,null,null,null,null,null,null,null,null,null,null,null,null,null,null,null,null,null,null,null,null,null,null,null,null,null,null,null,"1365"]
[null,null,null,"عنوان دوره",null,null,null,null,null,null,null,null,null,null,null,null,null,null,null,null,null,null,"محل برگزاری",null,null,null,null,null,null,"تاریخ برگزاری",null,null,null,"مدت برگزاری",null,null,null,"گواهی نامه",null,null,null,null,null,null,null,null,"1366"]
[null,null,1,null,null,null,null,null,null,null,null,null,null,null,null,null,null,null,null,null,null,null,null,null,null,null,null,null,null,null,null,null,null,null,null,null,null,null,null,null,null,null,null,null,null,null,"1367"]
[null,null,2,null,null,null,null,null,null,null,null,null,null,null,null,null,null,null,null,null,null,null,null,null,null,null,null,null,null,null,null,null,null,null,null,null,null,null,null,null,null,null,null,null,null,null,"1368"]
[null,null,3,null,null,null,null,null,null,null,null,null,null,null,null,null,null,null,null,null,null,null,null,null,null,null,null,null,null,null,null,null,null,null,null,null,null,null,null,null,null,null,null,null,null,null,"1369"]
[null,null,4,null,null,null,null,null,null,null,null,null,null,null,null,null,null,null,null,null,null,null,null,null,null,null,null,null,null,null,null,null,null,null,null,null,null,null,null,null,null,null,null,null,null,null,"1370"]
[null,null,5,null,null,null,null,null,null,null,null,null,null,null,null,null,null,null,null,null,null,null,null,null,null,null,null,null,null,null,null,null,null,null,null,null,null,null,null,null,null,null,null,null,null,null,"1371"]
[null,null,6,null,null,null,null,null,null,null,null,null,null,null,null,null,null,null,null,null,null,null,null,null,null,null,null,null,null,null,null,null,null,null,null,null,null,null,null,null,null,null,null,null,null,null,"1372"]
[null,null,7,null,null,null,null,null,null,null,null,null,null,null,null,null,null,null,null,null,null,null,null,null,null,null,null,null,null,null,null,null,null,null,null,null,null,null,null,null,null,null,null,null,null,null,"1373"]
[null,null,8,null,null,null,null,null,null,null,null,null,null,null,null,null,null,null,null,null,null,null,null,null,null,null,null,null,null,null,null,null,null,null,null,null,null,null,null,null,null,null,null,null,null,null,"1374"]
[null,null,9,null,null,null,null,null,null,null,null,null,null,null,null,null,null,null,null,null,null,null,null,null,null,null,null,null,null,null,null,null,null,null,null,null,null,null,null,null,null,null,null,null,null,null,"1375"]
[null,null,10,null,null,null,null,null,null,null,null,null,null,null,null,null,null,null,null,null,null,null,null,null,null,null,null,null,null,null,null,null,null,null,null,null,null,null,null,null,null,null,null,null,null,null,"1376"]
[null,null,11,null,null,null,null,null,null,null,null,null,null,null,null,null,null,null,null,null,null,null,null,null,null,null,null,null,null,null,null,null,null,null,null,null,null,null,null,null,null,null,null,null,null,null,"1377"]
[null,null,12,null,null,null,null,null,null,null,null,null,null,null,null,null,null,null,null,null,null,null,null,null,null,null,null,null,null,null,null,null,null,null,null,null,null,null,null,null,null,null,null,null,null,null,"1378"]
[null,null,13,null,null,null,null,null,null,null,null,null,null,null,null,null,null,null,null,null,null,null,null,null,null,null,null,null,null,null,null,null,null,null,null,null,null,null,null,null,null,null,null,null,null,null,"1379"]
[null,null,14,null,null,null,null,null,null,null,null,null,null,null,null,null,null,null,null,null,null,null,null,null,null,null,null,null,null,null,null,null,null,null,null,null,null,null,null,null,null,null,null,null,null,null,"1380"]
[null,null,15,null,null,null,null,null,null,null,null,null,null,null,null,null,null,null,null,null,null,null,null,null,null,null,null,null,null,null,null,null,null,null,null,null,null,null,null,null,null,null,null,null,null,null,"1381"]
[null,null,null,null,null,null,null,null,null,null,null,null,null,null,null,null,null,null,null,null,null,null,null,null,null,null,null,null,null,null,null,null,null,null,null,null,null,null,null,null,null,null,null,null,null,null,"1382"]
[null,null,null,null,null,null,null,null,null,null,null,null,null,null,null,null,null,null,null,null,null,null,null,null,null,null,null,null,null,null,null,null,null,null,null,null,null,null,null,null,null,null,null,null,null,null,"1383"]
[null,null,null,null,null,null,null,null,null,null,null,null,null,null,null,null,null,null,null,null,null,null,null,null,null,null,null,null,null,null,null,null,null,null,null,null,null,null,null,null,null,null,null,null,null,null,"1384"]
[null,null,"سوابق پژوهشی / پروژه های تحقیقاتی",null,null,null,null,null,null,null,null,null,null,null,null,null,null,null,null,null,null,null,null,null,null,null,null,null,null,null,null,null,null,null,null,null,null,null,null,null,null,null,null,null,null,null,"1385"]
[null,null,null,"نوع",null,null,null,null,null,"پایان نامه / رساله دکتری/ عنوان تحقیق/ پژوهش/ مقاله/کتاب",null,null,null,null,null,null,null,null,null,null,null,null,null,null,null,null,"سال ارائه",null,null,"مرکز علمی وابسته",null,null,null,null,null,null,null,"همکار/ مدیر",null,null,null,null,null,null,null,null,"1386"]
[null,null,1,null,null,null,null,null,null,null,null,null,null,null,null,null,null,null,null,null,null,null,null,null,null,null,null,null,null,null,null,null,null,null,null,null,null,null,null,null,null,null,null,null,null,null,"1387"]
[null,null,2,null,null,null,null,null,null,null,null,null,null,null,null,null,null,null,null,null,null,null,null,null,null,null,null,null,null,null,null,null,null,null,null,null,null,null,null,null,null,null,null,null,null,null,"1388"]
[null,null,3,null,null,null,null,null,null,null,null,null,null,null,null,null,null,null,null,null,null,null,null,null,null,null,null,null,null,null,null,null,null,null,null,null,null,null,null,null,null,null,null,null,null,null,"1389"]
[null,null,4,null,null,null,null,null,null,null,null,null,null,null,null,null,null,null,null,null,null,null,null,null,null,null,null,null,null,null,null,null,null,null,null,null,null,null,null,null,null,null,null,"مقاله بین المللی",null,"مدیر","1390"]
[null,null,5,null,null,null,null,null,null,null,null,null,null,null,null,null,null,null,null,null,null,null,null,null,null,null,null,null,null,null,null,null,null,null,null,null,null,null,null,null,null,null,null,"مقاله داخلی",null,"همکار اول","1391"]
[null,null,6,null,null,null,null,null,null,null,null,null,null,null,null,null,null,null,null,null,null,null,null,null,null,null,null,null,null,null,null,null,null,null,null,null,null,null,null,null,null,null,null,"مقاله کنفرانسی (چاپ شده)",null,"همکار دوم","1392"]
[null,null,7,null,null,null,null,null,null,null,null,null,null,null,null,null,null,null,null,null,null,null,null,null,null,null,null,null,null,null,null,null,null,null,null,null,null,null,null,null,null,null,null,"مقاله کنفرانسی ( بنر شده)",null,"همکار سوم به بعد","1393"]
[null,null,8,null,null,null,null,null,null,null,null,null,null,null,null,null,null,null,null,null,null,null,null,null,null,null,null,null,null,null,null,null,null,null,null,null,null,null,null,null,null,null,null,"مقاله کنفرانسی (سمینار شده)",null,null,"1394"]
[null,null,9,null,null,null,null,null,null,null,null,null,null,null,null,null,null,null,null,null,null,null,null,null,null,null,null,null,null,null,null,null,null,null,null,null,null,null,null,null,null,null,null,"تحقیقات",null,null,"1395"]
[null,null,10,null,null,null,null,null,null,null,null,null,null,null,null,null,null,null,null,null,null,null,null,null,null,null,null,null,null,null,null,null,null,null,null,null,null,null,null,null,null,null,null,"تالیف",null,null,"1396"]
[null,null,11,null,null,null,null,null,null,null,null,null,null,null,null,null,null,null,null,null,null,null,null,null,null,null,null,null,null,null,null,null,null,null,null,null,null,null,null,null,null,null,null,"همکاری تحقیقاتی",null,null,"1397"]
[null,null,12,null,null,null,null,null,null,null,null,null,null,null,null,null,null,null,null,null,null,null,null,null,null,null,null,null,null,null,null,null,null,null,null,null,null,null,null,null,null,null,null,"مسابقه/جشنواره",null,null,"1398"]
[null,null,13,null,null,null,null,null,null,null,null,null,null,null,null,null,null,null,null,null,null,null,null,null,null,null,null,null,null,null,null,null,null,null,null,null,null,null,null,null,null,null,null,null,null,null,"1399"]
[null,null,14,null,null,null,null,null,null,null,null,null,null,null,null,null,null,null,null,null,null,null,null,null,null,null,null,null,null,null,null,null,null,null,null,null,null,null,null,null,null,null,null,null,null,null,"1400"]
[null,null,15]
[]
[null,null,"سوابق اجرایی مرتبط با رشته تحصیلی (تدریس/ آموزش)"]
[null,null,null,"عنوان دوره ",null,null,null,null,null,null,null,null,null,null,null,null,null,null,null,null,null,null,"سال",null,"ترم",null,"مرکز علمی",null,null,null,null,null,null,null,null,null,"مدرس / همکار"]
[null,null,1]
[null,null,2]
[null,null,3]
[null,null,4]
[null,null,5,null,null,null,null,null,null,null,null,null,null,null,null,null,null,null,null,null,null,null,null,null,null,null,null,null,null,null,null,null,null,null,null,null,null,null,null,null,null,null,null,"مدرس"]
[null,null,6,null,null,null,null,null,null,null,null,null,null,null,null,null,null,null,null,null,null,null,null,null,null,null,null,null,null,null,null,null,null,null,null,null,null,null,null,null,null,null,null,"همکار"]
[null,null,7]
[null,null,8]
[null,null,9]
[null,null,10]
[]
[]
[]
[null,null,"سوابق اجرایی(کاری) مرتبط با رشته تحصیلی"]
[null,null,null,"عنوان فعالیت",null,null,null,null,null,null,null,null,null,null,null,null,null,null,"شروع",null,"پایان",null,"مرکز انجام فعالیت",null,null,null,null,null,null,null,null,null,"توضیحات"]
[null,null,1]
[null,null,2]
[null,null,3]
[null,null,4]
[null,null,5]
[null,null,6]
[null,null,7]
[null,null,8]
[null,null,9]
[null,null,10,null,null,null,null,null,null,null,null,null,null,null,null,null,null,null,null,null,null,null,null,null,null,null,null,null,null,null,null,null,null,null,null,null,null,null,null,null,null,null,null,null,"آشنایی","خواندن","آشنایی"]
[null,null,null,null,null,null,null,null,null,null,null,null,null,null,null,null,null,null,null,null,null,null,null,null,null,null,null,null,null,null,null,null,null,null,null,null,null,null,null,null,null,null,null,null,"خوب","خواندن و نوشتن","خوب"]
[null,null,null,null,null,null,null,null,null,null,null,null,null,null,null,null,null,null,null,null,null,null,null,null,null,null,null,null,null,null,null,null,null,null,null,null,null,null,null,null,null,null,null,null,"حرفه ای","مکالمه و محاوره","تسلط کامل"]
[null,null,"توانمندی های نرم افزاری(نام نرم افزارها به انگلیسی نوشته شود)",null,null,null,null,null,null,null,null,null,null,null,null,null,null,null,null,null,null,null,null,"تسلط به زبانهای خارجی",null,null,null,null,null,null,null,null,null,null,null,null,null,null,null,null,null,null,null,null,null,"زبان مادری"]
[null,null,null,"نام نرم افزار",null,null,null,null,null,null,null,null,null,null,null,"میزان تسلط",null,null,null,null,null,null,null,null,"نام زبان",null,null,null,null,null,null,null,null,null,null,null,"میزان تسلط",null,null,null,null,null,null,null,null,"تسلط کامل"]
[null,null,1,null,null,null,null,null,null,null,null,null,null,null,null,null,null,null,null,null,null,null,null,1,null,null,null,null,null,null,null,null,null,null,null,null,null,null,null,null,null,null,null,null,{"$f":"IF(P136=$AS$132,CONCATENATE(D136,\" / \"),IF(P136=$AS$133,CONCATENATE(D136,\" / \"),\"\"))","v":""},null,{"$f":"IF(AK136=$AU$132,CONCATENATE(Y136,\" / \"),IF(AK136=$AU$133,CONCATENATE(Y136,\" / \"),\"\"))","v":""}]
[null,null,2,null,null,null,null,null,null,null,null,null,null,null,null,null,null,null,null,null,null,null,null,2,null,null,null,null,null,null,null,null,null,null,null,null,null,null,null,null,null,null,null,null,{"$f":"IF(P137=$AS$132,CONCATENATE(D137,\" / \"),IF(P137=$AS$133,CONCATENATE(D137,\" / \"),\"\"))","v":""},null,""]
[null,null,3,null,null,null,null,null,null,null,null,null,null,null,null,null,null,null,null,null,null,null,null,3,null,null,null,null,null,null,null,null,null,null,null,null,null,null,null,null,null,null,null,null,"",null,""]
[null,null,4,null,null,null,null,null,null,null,null,null,null,null,null,null,null,null,null,null,null,null,null,4,null,null,null,null,null,null,null,null,null,null,null,null,null,null,null,null,null,null,null,null,"",null,""]
[null,null,5,null,null,null,null,null,null,null,null,null,null,null,null,null,null,null,null,null,null,null,null,5,null,null,null,null,null,null,null,null,null,null,null,null,null,null,null,null,null,null,null,null,"",null,""]
[null,null,6,null,null,null,null,null,null,null,null,null,null,null,null,null,null,null,null,null,null,null,null,6,null,null,null,null,null,null,null,null,null,null,null,null,null,null,null,null,null,null,null,null,"",null,""]
[null,null,7,null,null,null,null,null,null,null,null,null,null,null,null,null,null,null,null,null,null,null,null,7,null,null,null,null,null,null,null,null,null,null,null,null,null,null,null,null,null,null,null,null,"",null,""]
[null,null,8,null,null,null,null,null,null,null,null,null,null,null,null,null,null,null,null,null,null,null,null,8,null,null,null,null,null,null,null,null,null,null,null,null,null,null,null,null,null,null,null,null,"",null,""]
[null,null,9,null,null,null,null,null,null,null,null,null,null,null,null,null,null,null,null,null,null,null,null,9,null,null,null,null,null,null,null,null,null,null,null,null,null,null,null,null,null,null,null,null,"",null,""]
[null,null,10,null,null,null,null,null,null,null,null,null,null,null,null,null,null,null,null,null,null,null,null,10,null,null,null,null,null,null,null,null,null,null,null,null,null,null,null,null,null,null,null,null,"",null,""]
[null,null,null,null,null,null,null,null,null,null,null,null,null,null,null,null,null,null,null,null,null,null,null,null,null,null,null,null,null,null,null,null,null,null,null,null,null,null,null,null,null,null,null,null,{"$f":"CONCATENATE(AS136,AS137,AS138,AS139,AS140,AS141,AS142,AS143,AS144,AS145)","v":""},null,{"$f":"CONCATENATE(AU136,AU137,AU138,AU139,AU140,AU141,AU142,AU143,AU144,AU145)","v":""}]
[]
[]
[]
[null,null,"ثبت اختراعات (پتنت)"]
[null,null,null,"عنوان",null,null,null,null,null,null,null,null,null,null,null,null,null,null,null,null,null,null,"سال ثبت",null,null,"محل ثبت",null,null,null,null,null,null,"توضیحات"]
[null,null,1]
[null,null,2]
[null,null,3]
[null,null,4]
[null,null,5]
[null,null,6]
[null,null,7]
[null,null,8]
[null,null,9]
[null,null,10]
[]
[]
[null,null,"افتخارات (مسابقات / جشنواره ها / رتبه های برتر دانشگاهی و کنکوری / ... )"]
[null,null,null,"عنوان",null,null,null,null,null,null,null,null,null,null,null,null,null,null,null,null,"توضیحات",null,null,null,null,null,null,null,null,null,null,null,null,null,null,null,null,null,"سال"]
[null,null,1]
[null,null,2]
[null,null,3]
[null,null,4]
[null,null,5]
[null,null,6]
[null,null,7]
[null,null,8]
[null,null,9]
[null,null,10]
[]
[]
[]
[null,null,"توانمندی ها و تخصص ها(تخصص ها و توانمندی های خود را به صورت کلید واژه بیان نمایید)"]
[null,null,null,"توانمندی"]
[null,null,1,null,null,null,null,null,null,null,null,null,null,null,null,null,null,null,null,null,null,null,null,null,null,null,null,null,null,null,null,null,null,null,null,null,null,null,null,null,null,null,null,null,{"$f":"IF(TRIM(D181)<>\"\",CONCATENATE(D181,\" / \"),\"\")","v":""}]
[null,null,2,null,null,null,null,null,null,null,null,null,null,null,null,null,null,null,null,null,null,null,null,null,null,null,null,null,null,null,null,null,null,null,null,null,null,null,null,null,null,null,null,null,""]
[null,null,3,null,null,null,null,null,null,null,null,null,null,null,null,null,null,null,null,null,null,null,null,null,null,null,null,null,null,null,null,null,null,null,null,null,null,null,null,null,null,null,null,null,""]
[null,null,4,null,null,null,null,null,null,null,null,null,null,null,null,null,null,null,null,null,null,null,null,null,null,null,null,null,null,null,null,null,null,null,null,null,null,null,null,null,null,null,null,null,""]
[null,null,5,null,null,null,null,null,null,null,null,null,null,null,null,null,null,null,null,null,null,null,null,null,null,null,null,null,null,null,null,null,null,null,null,null,null,null,null,null,null,null,null,null,{"$f":"IF(TRIM(D185)<>\"\",CONCATENATE(D185,\" / \"),\"\")","v":""}]
[null,null,6,null,null,null,null,null,null,null,null,null,null,null,null,null,null,null,null,null,null,null,null,null,null,null,null,null,null,null,null,null,null,null,null,null,null,null,null,null,null,null,null,null,""]
[null,null,7,null,null,null,null,null,null,null,null,null,null,null,null,null,null,null,null,null,null,null,null,null,null,null,null,null,null,null,null,null,null,null,null,null,null,null,null,null,null,null,null,null,""]
[null,null,8,null,null,null,null,null,null,null,null,null,null,null,null,null,null,null,null,null,null,null,null,null,null,null,null,null,null,null,null,null,null,null,null,null,null,null,null,null,null,null,null,null,""]
[null,null,9,null,null,null,null,null,null,null,null,null,null,null,null,null,null,null,null,null,null,null,null,null,null,null,null,null,null,null,null,null,null,null,null,null,null,null,null,null,null,null,null,null,""]
[null,null,10,null,null,null,null,null,null,null,null,null,null,null,null,null,null,null,null,null,null,null,null,null,null,null,null,null,null,null,null,null,null,null,null,null,null,null,null,null,null,null,null,null,{"$f":"IF(TRIM(D190)<>\"\",CONCATENATE(D190,\" / \"),\"\")","v":""}]
[null,null,null,null,null,null,null,null,null,null,null,null,null,null,null,null,null,null,null,null,null,null,null,null,null,null,null,null,null,null,null,null,null,null,null,null,null,null,null,null,null,null,null,null,{"$f":"CONCATENATE(AS181,AS182,AS183,AS184,AS185,AS186,AS187,AS188,AS189,AS190)","v":""}]
[null,null,"نحوه آشنایی با دفتر:"]
[null,null,"در صورت انتخاب گزینه \"سایر\"، در ذیل توضیحات مربوطه را ذکر نمایید."]
[null,null,"در صورت انتخاب گزینه \"معرفی شده از دانشگاه ها و سایر مراکز علمی\" و \"اطلاع رسانی های دانشگاهی\" نام دانشگاه را قید نمایید. (نامه معرفی ضروری می باشد)"]
[null,null,"در صورت انتخاب گزینه \"آگهی های دعوت به همکاری\" عنوان مد نظر در آگهی را قید نمایید."]
[]
[]
[]
[null,null,"اگر مطلب خاصی را در خصوص رزومه خود لازم میدانید بیان شود که در جداول فوق مطرح نگردیده در ذیل بیان نمایید.",null,null,null,null,null,null,null,null,null,null,null,null,null,null,null,null,null,null,null,null,null,null,null,null,null,null,null,null,null,null,null,null,null,null,null,null,null,null,null,null,"معرفی شده از دانشگاه ها و سایر مراکز علمی"]
[null,null,null,null,null,null,null,null,null,null,null,null,null,null,null,null,null,null,null,null,null,null,null,null,null,null,null,null,null,null,null,null,null,null,null,null,null,null,null,null,null,null,null,"اطلاع رسانی های دانشگاهی"]
[null,null,null,null,null,null,null,null,null,null,null,null,null,null,null,null,null,null,null,null,null,null,null,null,null,null,null,null,null,null,null,null,null,null,null,null,null,null,null,null,null,null,null,"آگهی های دعوت به همکاری"]
[null,null,null,null,null,null,null,null,null,null,null,null,null,null,null,null,null,null,null,null,null,null,null,null,null,null,null,null,null,null,null,null,null,null,null,null,null,null,null,null,null,null,null,"دعوت به همکاری شده توسط دفتر"]
[null,null,null,null,null,null,null,null,null,null,null,null,null,null,null,null,null,null,null,null,null,null,null,null,null,null,null,null,null,null,null,null,null,null,null,null,null,null,null,null,null,null,null,"دوستان و آشنایان"]
[null,null,null,null,null,null,null,null,null,null,null,null,null,null,null,null,null,null,null,null,null,null,null,null,null,null,null,null,null,null,null,null,null,null,null,null,null,null,null,null,null,null,null,"سایر"]
[null,"اینجانب صحت اطلاعات فوق را تایید و مسئولیت مغایرت آن را بر عهده می گیرم. تاریخ تکمیل فرم الزامی است",null,null,null,null,null,null,null,null,null,null,null,null,null,null,null,null,null,null,null,null,null,null,null,null,null,null,null,null,null,null,"روز",null,null,"ماه",null,null,"سال"]
[]
[]
[null,null,null,null,null,null,null,null,null,null,null,null,null,null,null,null,null,null,null,null,null,null,null,null,null,null,null,null,null,null,null,null,null,null,null,null,null,null,null,null,null,null,null,true]

{"sheet":"Sheet1","index":1,"n_rows":0,"n_cols":0,"rows_kept":0,"cut":false,"hidden":false,"merged":[]}